bitfinex-derivatives/quotes_BTCF0:USTF0_20251215
["timestamp","ask_amount","ask_price","bid_price","bid_amount"]
[1765821029861,0.92480205,85818.0,85817.0,0.6807128]
[1765821030056,0.22432205,85818.0,85817.0,0.6807128]
[1765821030264,0.19113209,85818.0,85817.0,0.6807128]
[1765821030665,0.00017477,85826.0,85825.0,0.6823118]
[1765821030862,0.85762477,85826.0,85825.0,0.6823118]
[1765821031171,0.89067465,85826.0,85825.0,0.34187]
[1765821031761,0.67672,85823.0,85822.0,0.54716]
[1765821031960,0.87976988,85823.0,85822.0,0.90179]
[1765821032161,0.87976988,85823.0,85822.0,0.99306748]
[1765821032370,0.20304988,85823.0,85822.0,0.99306748]
[1765821032962,0.20404988,85823.0,85822.0,0.99306748]
[1765821033169,0.20404988,85823.0,85817.0,0.001]
[1765821033170,0.67672,85818.0,85817.0,0.001]
[1765821033367,0.6883738,85810.0,85809.0,0.00017477]
[1765821033570,0.34757,85805.0,85800.0,0.44599336]
[1765821033763,0.53757,85805.0,85804.0,0.34123]
[1765821033965,0.22279156,85805.0,85804.0,0.69586]
[1765821034862,0.22279156,85805.0,85804.0,0.69686]
[1765821035973,0.22379156,85805.0,85804.0,0.69686]
[1765821036868,0.22379156,85805.0,85804.0,0.34223]
[1765821037071,0.90051156,85805.0,85804.0,0.001]
[1765821038373,0.90051156,85805.0,85804.0,0.69686]
[1765821038762,0.57136156,85805.0,85804.0,0.69686]
[1765821038971,0.22379156,85805.0,85804.0,0.69686]
[1765821040471,0.22379156,85805.0,85804.0,0.7085147]
[1765821040665,0.57136156,85805.0,85804.0,0.7085147]
[1765821040859,0.22379156,85805.0,85804.0,0.7085147]
[1765821041874,0.22379156,85805.0,85804.0,1.4427947]
[1765821042075,0.21379156,85805.0,85804.0,1.4427947]
[1765821042471,0.06193447,85819.0,85818.0,0.69586]
[1765821042677,0.06193447,85821.0,85820.0,0.69586]
[1765821042878,0.26193447,85821.0,85820.0,0.69586]
[1765821043269,0.60950447,85821.0,85820.0,0.69586]
[1765821043478,0.87672,85821.0,85820.0,0.34123]
[1765821043971,0.55057,85821.0,85820.0,0.69586]
[1765821044165,0.55057,85821.0,85813.0,0.3608]
[1765821044166,0.67672,85814.0,85813.0,0.3608]
[1765821044375,0.34757,85799.0,85789.0,0.20675]
[1765821044568,0.8583753,85799.0,85791.0,0.0116564]
[1765821044773,0.8583753,85799.0,85793.0,0.0116561]
[1765821044967,0.17,85799.0,85790.0,0.0116565]
[1765821045176,0.011657,85787.0,85781.0,0.62768]
[1765821045476,0.34757,85786.0,85785.0,0.7075171]
[1765821045670,0.51757,85786.0,85785.0,0.7075171]
[1765821046072,0.51769531,85786.0,85785.0,0.7075171]
[1765821046780,0.84684531,85786.0,85785.0,0.7075171]
[1765821046977,0.85850241,85786.0,85785.0,0.34123]
[1765821047281,0.17012531,85786.0,85779.0,0.011658]
[1765821047467,0.17012531,85786.0,85785.0,0.002]
[1765821047673,0.84684531,85786.0,85785.0,0.002]
[1765821048386,0.84684531,85786.0,85783.0,0.0116574]
[1765821048683,0.84684531,85786.0,85778.0,0.02063027]
[1765821048684,0.67672,85780.0,85779.0,0.014658]
[1765821048983,0.83672,85780.0,85779.0,0.003]
[1765821049873,0.83672,85780.0,85779.0,0.008]
[1765821050178,0.83672,85780.0,85779.0,0.005]
[1765821050768,1.19752,85780.0,85779.0,0.005]
[1765821050974,1.19752,85780.0,85779.0,0.008]
[1765821051674,0.688378,85779.0,85778.0,2.7e-07]
[1765821051874,0.67672,85765.0,85764.0,0.05]
[1765821052182,1.19752,85765.0,85764.0,0.05]
[1765821052576,1.55832,85765.0,85764.0,0.04733802]
[1765821052780,1.19752,85765.0,85764.0,0.04733802]
[1765821053375,1.19752,85765.0,85764.0,0.0234813]
[1765821053774,1.55832,85765.0,85764.0,0.0234813]
[1765821053969,1.55832,85765.0,85764.0,1.3e-06]
[1765821054184,1.55844236,85765.0,85764.0,1.3e-06]
[1765821054383,0.6883806,85760.0,85750.0,4e-05]
[1765821054579,1.6227406,85760.0,85750.0,4e-05]
[1765821054781,0.6883819,85751.0,85750.0,0.02073455]
[1765821054976,0.6883819,85751.0,85738.0,0.0023327]
[1765821054977,0.34757,85739.0,85738.0,0.0023327]
[1765821055177,0.18,85739.0,85738.0,0.7098562]
[1765821055383,0.52757,85739.0,85738.0,0.7098562]
[1765821055685,0.18,85739.0,85738.0,0.73120144]
[1765821055876,0.00017488,85747.0,85746.0,0.7075225]
[1765821056076,0.17017488,85747.0,85746.0,0.7075225]
[1765821058380,0.17017488,85747.0,85746.0,0.69586]
[1765821058586,0.17117488,85747.0,85746.0,0.69586]
[1765821059081,0.17017488,85747.0,85746.0,0.69586]
[1765821059280,0.17117488,85747.0,85746.0,0.69586]
[1765821059580,0.84789488,85747.0,85746.0,0.34123]
[1765821059786,0.51874488,85747.0,85746.0,0.3528925]
[1765821059989,0.51874488,85747.0,85746.0,0.7075225]
[1765821060481,0.17117488,85747.0,85746.0,0.7075225]
[1765821060787,0.01117488,85747.0,85746.0,1.18494533]
[1765821061197,0.00117488,85747.0,85746.0,1.18494533]
[1765821061683,0.23131829,85788.0,85764.0,0.8786501]
[1765821061684,0.3608,85771.0,85764.0,0.8786501]
[1765821061876,0.14012236,85765.0,85764.0,0.8786501]
[1765821063081,0.35726,85757.0,85756.0,0.00017488]
[1765821063377,1.21624,85757.0,85756.0,0.00017488]
[1765821063695,0.88806,85757.0,85756.0,0.67184488]
[1765821064079,0.5308,85757.0,85756.0,0.67184488]
[1765821064276,0.3628,85757.0,85756.0,0.67184488]
[1765821064488,0.152,85757.0,85756.0,0.67184488]
[1765821064790,0.83744,85757.0,85756.0,0.00017488]
[1765821064999,0.84044,85757.0,85756.0,0.00017488]
[1765821065288,0.155,85757.0,85756.0,0.67184488]
[1765821065587,0.165,85757.0,85756.0,0.67184488]
[1765821066977,0.175,85757.0,85756.0,0.67184488]
[1765821067476,0.165,85757.0,85756.0,0.67184488]
[1765821068085,0.185,85757.0,85756.0,0.67184488]
[1765821069191,0.54226,85757.0,85756.0,0.67184488]
[1765821069493,0.87044,85757.0,85756.0,0.00017488]
[1765821071295,0.68544,85751.0,85750.0,4e-05]
[1765821071486,1.22624,85751.0,85750.0,4e-05]
[1765821072399,0.35726,85741.0,85740.0,0.0116633]
[1765821072690,1.22624,85741.0,85740.0,0.0116633]
[1765821072893,1.22624,85741.0,85740.0,0.3558833]
[1765821073088,0.89806,85741.0,85740.0,0.6833333]
[1765821073295,1.22624,85741.0,85740.0,0.6833333]
[1765821073789,0.5308,85741.0,85740.0,0.8816433]
[1765821074494,0.3608,85741.0,85740.0,0.8816433]
[1765821074683,0.68561488,85749.0,85748.0,0.0116623]
[1765821074878,0.68544,85746.0,85745.0,0.0116626]
[1765821075083,0.86544,85746.0,85745.0,0.0116626]
[1765821075790,0.35726,85740.0,85739.0,0.0116634]
[1765821075999,1.23624,85740.0,85739.0,0.0116634]
[1765821076292,1.23624,85740.0,85738.0,0.02367794]
[1765821076598,1.23624,85740.0,85716.0,0.19831]
[1765821076599,9.945e-05,85739.0,85716.0,0.19831]
[1765821076787,0.16016,85712.0,85705.0,0.011668]
[1765821076991,0.16016,85701.0,85693.0,0.009]
[1765821077297,0.35016,85701.0,85697.0,0.0116691]
[1765821077487,0.35016,85701.0,85700.0,0.02072538]
[1765821077891,0.35029453,85701.0,85700.0,0.02072538]
[1765821078096,0.35029453,85701.0,85700.0,4e-05]
[1765821078297,0.35129453,85701.0,85700.0,0.00604]
[1765821078499,0.75129453,85701.0,85700.0,0.00604]
[1765821078795,0.12524,85670.0,85650.0,1.00004]
[1765821078996,0.31538552,85670.0,85668.0,0.0116731]
[1765821079384,0.31538552,85670.0,85669.0,0.00307555]
[1765821079708,0.31538552,85670.0,85669.0,0.02055594]
[1765821079890,0.19014552,85670.0,85669.0,0.67474555]
[1765821080202,0.19014552,85670.0,85669.0,0.69528956]
[1765821080203,0.00014552,85670.0,85669.0,0.69528956]
[1765821080389,0.15014552,85670.0,85669.0,0.69528956]
[1765821080584,0.21276552,85670.0,85669.0,0.02361956]
[1765821080788,0.27538552,85670.0,85669.0,0.02361956]
[1765821081093,0.15114552,85670.0,85669.0,0.70128956]
[1765821081396,0.76145555,85690.0,85669.0,0.70128956]
[1765821081397,0.0116691,85698.0,85694.0,0.19831]
[1765821081696,0.12524,85681.0,85680.0,0.19831]
[1765821081996,0.30524,85681.0,85680.0,0.19831]
[1765821082297,0.3053287,85681.0,85680.0,0.20128593]
[1765821082685,0.12524,85673.0,85672.0,0.00017501]
[1765821082885,0.29524,85673.0,85672.0,0.00017501]
[1765821083090,0.29524,85673.0,85672.0,0.00315094]
[1765821083689,0.17,85673.0,85672.0,0.67482094]
[1765821083886,0.29524,85673.0,85672.0,0.00315094]
[1765821084286,0.23362,85673.0,85672.0,0.00715094]
[1765821084603,0.29624,85673.0,85672.0,0.00715094]
[1765821085200,0.29624,85673.0,85672.0,0.01215094]
[1765821086005,0.29624,85673.0,85672.0,0.01115094]
[1765821086501,0.29624,85673.0,85672.0,0.00817501]
[1765821086797,0.29624,85673.0,85672.0,0.00717501]
[1765821087195,0.29624,85673.0,85672.0,0.01015094]
[1765821088197,0.23362,85673.0,85672.0,0.68182094]
[1765821088395,0.29624,85673.0,85672.0,0.01015094]
[1765821089205,0.3079125,85673.0,85672.0,0.01015094]
[1765821091100,0.3079125,85673.0,85672.0,0.00717501]
[1765821091294,0.6687125,85673.0,85672.0,0.00717501]
[1765821091895,0.9434725,85673.0,85672.0,1e-08]
[1765821092301,1.3042725,85673.0,85672.0,1e-08]
[1765821092501,0.1369129,85670.0,85669.0,9.962e-05]
[1765821092702,0.1369129,85670.0,85660.0,0.0079]
[1765821092703,0.1369141,85661.0,85660.0,0.0079]
[1765821092898,1.4128741,85661.0,85660.0,0.0079]
[1765821093099,1.4128741,85661.0,85660.0,0.01087593]
[1765821093503,0.6777141,85661.0,85660.0,0.0079]
[1765821093704,1.0520741,85661.0,85660.0,0.01087593]
[1765821093904,0.97782,85661.0,85660.0,0.71357593]
[1765821094105,0.24362,85661.0,85660.0,0.71557593]
[1765821094412,0.13610465,85661.0,85660.0,0.71557593]
[1765821094815,0.011671,85684.0,85660.0,0.71557593]
[1765821094816,0.3608,85694.0,85680.0,0.7123715]
[1765821095112,0.0116679,85707.0,85700.0,0.7007]
[1765821095308,0.3608,85704.0,85700.0,0.7007]
[1765821095509,0.39744,85697.0,85683.0,0.2051]
[1765821095698,0.39744,85697.0,85696.0,0.9058]
[1765821095699,0.18885398,85697.0,85696.0,0.9058]
[1765821095906,0.11,85710.0,85709.0,0.7007]
[1765821096099,0.11,85710.0,85708.0,0.2051]
[1765821096100,0.4091076,85709.0,85708.0,0.2051]
[1765821096305,0.58744,85709.0,85708.0,0.2051]
[1765821096505,0.58744,85709.0,85708.0,0.9058]
[1765821096506,0.19,85709.0,85708.0,0.9058]
[1765821096899,0.12,85722.0,85721.0,0.7123659]
[1765821097104,0.00017499,85730.0,85729.0,0.7007]
[1765821097307,0.19883,85723.0,85722.0,0.2051]
[1765821097500,0.57766,85723.0,85722.0,0.2051]
[1765821097902,0.1801422,85723.0,85722.0,0.54738]
[1765821098104,0.5778022,85723.0,85722.0,0.2051]
[1765821099109,0.5778022,85723.0,85708.0,0.2061]
[1765821099110,0.4093276,85709.0,85708.0,0.2061]
[1765821099314,0.6093276,85709.0,85708.0,0.2061]
[1765821099510,0.6093276,85709.0,85708.0,0.2051]
[1765821099713,0.39766,85695.0,85694.0,0.00010151]
[1765821100019,0.6093295,85695.0,85694.0,0.20520151]
[1765821100313,0.60947599,85695.0,85694.0,0.00010151]
[1765821100714,0.20014649,85695.0,85694.0,0.90590151]
[1765821100909,0.59780649,85695.0,85694.0,0.20520151]
[1765821101114,0.60080649,85695.0,85694.0,0.20620151]
[1765821101712,0.60080649,85695.0,85694.0,0.00110151]
[1765821102917,0.20314649,85695.0,85694.0,0.90690151]
[1765821103117,1.13761649,85695.0,85694.0,0.20620151]
[1765821103615,1.13761649,85695.0,85686.0,0.00017499]
[1765821103616,0.4093306,85687.0,85686.0,0.00017499]
[1765821103820,0.9301306,85687.0,85686.0,0.00017499]
[1765821105513,0.4093333,85667.0,85660.0,0.0079]
[1765821105714,0.19883,85661.0,85660.0,0.0079]
[1765821106019,0.35883,85661.0,85660.0,0.0079]
[1765821106414,0.55766,85661.0,85660.0,0.0079]
[1765821107025,0.35883,85661.0,85660.0,0.0079]
[1765821107222,0.55766,85661.0,85660.0,0.0079]
[1765821108323,0.55866,85661.0,85660.0,0.0119]
[1765821108520,0.39766,85659.0,85653.0,0.36088438]
[1765821108826,0.56766,85659.0,85653.0,0.36088438]
[1765821109019,1.3033,85659.0,85653.0,0.36088438]
[1765821109819,1.1161444,85659.0,85658.0,0.34661488]
[1765821110024,0.9182744,85659.0,85658.0,0.34861488]
[1765821110326,1.1171044,85659.0,85658.0,0.34861488]
[1765821110514,1.1171044,85659.0,85658.0,0.00633488]
[1765821111211,0.9066,85659.0,85658.0,0.70703488]
[1765821111527,0.9066,85659.0,85658.0,0.70303488]
[1765821111719,0.171,85659.0,85658.0,0.70303488]
[1765821112315,0.36983,85659.0,85658.0,0.70303488]
[1765821112721,0.171,85659.0,85658.0,0.70303488]
[1765821112928,0.36983,85659.0,85658.0,0.70303488]
[1765821113323,0.56866,85659.0,85658.0,0.00233488]
[1765821113519,0.92946,85659.0,85658.0,0.00233488]
[1765821114813,0.39766,85654.0,85653.0,8.438e-05]
[1765821115020,0.55766,85654.0,85653.0,8.438e-05]
[1765821115423,0.5693351,85654.0,85653.0,8.438e-05]
[1765821115932,0.16,85654.0,85653.0,0.70078438]
[1765821116119,0.011675,85655.0,85654.0,0.7007]
[1765821116327,0.39866,85654.0,85653.0,0.00108438]
[1765821116527,0.59866,85654.0,85653.0,0.00108438]
[1765821117429,0.39766,85651.0,85650.0,0.99132812]
[1765821117624,1.6939,85651.0,85650.0,0.99132812]
[1765821118032,0.39766,85625.0,85618.0,0.00233597]
[1765821118218,1.30306,85625.0,85618.0,0.00233597]
[1765821118424,0.17009094,85625.0,85624.0,0.73303267]
[1765821119124,0.17109094,85625.0,85624.0,0.73503267]
[1765821119336,0.17109094,85625.0,85624.0,0.72335347]
[1765821119519,0.17109094,85625.0,85624.0,0.73503267]
[1765821119718,0.06109094,85625.0,85624.0,0.73503267]
[1765821119927,0.20109094,85625.0,85624.0,0.73503267]
[1765821120334,0.20109094,85625.0,85624.0,0.72335347]
[1765821120633,0.7356951,85633.0,85632.0,0.7123781]
[1765821120634,0.0001751,85633.0,85632.0,0.7123781]
[1765821120839,0.16,85646.0,85645.0,0.7007]
[1765821121139,0.17,85646.0,85645.0,1.0731763]
[1765821121325,0.17,85646.0,85645.0,0.7123763]
[1765821121519,0.19,85659.0,85658.0,0.7007]
[1765821121737,0.19,85659.0,85657.0,0.2051]
[1765821121738,0.6676743,85660.0,85657.0,0.2051]
[1765821122027,0.3610445,85658.0,85657.0,0.55066]
[1765821122329,0.16,85658.0,85657.0,0.88451]
[1765821124035,0.83572,85658.0,85657.0,0.2051]
[1765821124232,0.67572,85651.0,85650.0,0.0001751]
[1765821124422,0.84572,85651.0,85650.0,0.0001751]
[1765821124834,0.17,85651.0,85650.0,0.6795851]
[1765821125041,0.84572,85651.0,85650.0,0.0001751]
[1765821125534,0.84872,85651.0,85650.0,0.0001751]
[1765821125838,0.85272,85651.0,85650.0,0.0001751]
[1765821126340,1.21352,85651.0,85650.0,0.0001751]
[1765821126735,1.21352,85651.0,85650.0,0.3457351]
[1765821126940,0.177,85651.0,85650.0,0.6912607]
[1765821127436,0.1627651,85651.0,85650.0,0.6912607]
[1765821128126,0.00010475,85659.0,85658.0,0.6910845]
[1765821128329,0.19010475,85659.0,85658.0,1.0518845]
[1765821128529,0.0001751,85667.0,85666.0,0.6910834]
[1765821128755,0.3608,85691.0,85666.0,0.6910834]
[1765821128756,0.15,85680.0,85679.0,0.6910817]
[1765821129059,0.21,85693.0,85692.0,0.33385]
[1765821129247,0.00233379,85698.0,85697.0,0.67941]
[1765821129450,0.0116703,85689.0,85683.0,0.210881]
[1765821129647,0.2116703,85689.0,85683.0,0.19921]
[1765821129844,0.2,85689.0,85688.0,0.67941]
[1765821131050,0.0001751,85695.0,85694.0,0.87862]
[1765821131249,0.1901751,85695.0,85694.0,1.23942]
[1765821131454,0.1901751,85695.0,85694.0,0.87862]
[1765821132249,0.1901751,85695.0,85694.0,0.67941]
[1765821132449,0.0116718,85678.0,85677.0,0.6795851]
[1765821132660,0.19,85678.0,85677.0,0.6795851]
[1765821133058,1.33689175,85690.0,85681.0,0.0116713]
[1765821133357,1.33689175,85690.0,85689.0,0.67941]
[1765821133358,0.5408,85690.0,85689.0,0.67941]
[1765821133546,0.54017276,85690.0,85689.0,0.67941]
[1765821133744,0.54017276,85690.0,85680.0,0.19921]
[1765821133945,0.78026451,85690.0,85680.0,0.19921]
[1765821134151,0.18,85690.0,85689.0,0.67941]
[1765821134348,0.186,85690.0,85689.0,1.04021]
[1765821134557,0.0001751,85695.0,85694.0,0.8902896]
[1765821134861,0.24305329,85714.0,85713.0,0.691077]
[1765821135049,0.0116632,85742.0,85737.0,0.67941]
[1765821135251,0.2023327,85738.0,85737.0,0.67941]
[1765821135449,0.67572,85729.0,85721.0,0.3608]
[1765821135649,0.67572,85729.0,85717.0,0.0116663]
[1765821135650,0.011665,85728.0,85717.0,0.0116663]
[1765821135850,7.048e-05,85727.0,85723.0,0.0116655]
[1765821136153,0.19007048,85727.0,85726.0,0.67941]
[1765821136662,0.19007048,85727.0,85726.0,0.34556]
[1765821136859,0.67572,85724.0,85723.0,0.02054778]
[1765821137159,0.67572,85715.0,85714.0,0.00017498]
[1765821137351,0.17,85715.0,85714.0,0.00017498]
[1765821137548,0.17,85715.0,85714.0,0.67958498]
[1765821137748,0.5310368,85715.0,85714.0,0.00017498]
[1765821137954,0.5310368,85715.0,85714.0,0.02083396]
[1765821137955,0.8573868,85715.0,85714.0,0.02083396]
[1765821138158,0.0116692,85698.0,85694.0,0.3608]
[1765821138357,0.0116696,85695.0,85691.0,0.3608]
[1765821138558,0.67572,85692.0,85691.0,0.3608]
[1765821138765,0.85572,85692.0,85691.0,0.3608]
[1765821139261,0.85572,85692.0,85691.0,0.38161571]
[1765821139648,0.85572,85692.0,85691.0,0.3608]
[1765821139848,0.52937,85692.0,85691.0,0.3608]
[1765821140247,0.89596,85692.0,85691.0,1.04021]
[1765821140452,7.048e-05,85694.0,85691.0,0.3608]
[1765821140453,0.34944048,85694.0,85691.0,0.3608]
[1765821140655,0.34944048,85694.0,85689.0,0.0212441]
[1765821140656,0.34937,85690.0,85689.0,0.0212441]
[1765821140849,0.34937,85690.0,85683.0,0.00017498]
[1765821140850,0.53937,85690.0,85683.0,0.00017498]
[1765821141050,0.67572,85684.0,85683.0,0.00017498]
[1765821141252,1.57156,85684.0,85683.0,0.00017498]
[1765821141758,0.6873917,85679.0,85678.0,0.02048433]
[1765821141960,0.8773917,85679.0,85672.0,0.3608]
[1765821142355,0.0116721,85676.0,85672.0,0.38137005]
[1765821142547,0.7362,85679.0,85678.0,0.34556]
[1765821142752,0.00017508,85687.0,85686.0,0.34556]
[1765821143052,0.00017508,85687.0,85672.0,0.38137005]
[1765821143053,0.0116716,85680.0,85672.0,0.38137005]
[1765821143250,0.1816715,85680.0,85672.0,0.38137005]
[1765821143451,0.17,85680.0,85673.0,0.0116725]
[1765821143647,0.17,85680.0,85679.0,0.67941]
[1765821144053,0.17,85680.0,85678.0,0.001]
[1765821144358,0.34937,85679.0,85672.0,0.39404255]
[1765821144559,0.0116724,85674.0,85673.0,0.34556]
[1765821144761,0.0116724,85674.0,85672.0,0.38237005]
[1765821144762,0.67572,85673.0,85672.0,0.38237005]
[1765821144965,0.67572,85659.0,85656.0,0.3608]
[1765821145261,0.86572,85659.0,85658.0,0.02343766]
[1765821146062,0.86586479,85659.0,85658.0,0.02343766]
[1765821146466,0.86686479,85659.0,85658.0,0.02643766]
[1765821146656,0.19114479,85659.0,85658.0,0.02643766]
[1765821146856,0.19114479,85659.0,85658.0,0.70784766]
[1765821147163,0.86686479,85659.0,85658.0,0.02843766]
[1765821148464,0.19114479,85659.0,85658.0,0.70784766]
[1765821148654,0.19114479,85659.0,85658.0,1.06864766]
[1765821149256,0.54051479,85659.0,85658.0,0.38923766]
[1765821149560,0.54051479,85659.0,85632.0,0.011678]
[1765821149561,0.0116759,85648.0,85625.0,0.10457881]
[1765821149760,0.3608,85645.0,85631.0,0.3608]
[1765821150067,0.5508,85645.0,85644.0,0.34556]
[1765821150360,0.3608,85645.0,85644.0,0.71219054]
[1765821150558,0.17,85645.0,85644.0,0.71219054]
[1765821152151,0.171,85645.0,85644.0,0.71219054]
[1765821152355,0.173,85645.0,85644.0,0.71319054]
[1765821152550,0.3608,85671.0,85658.0,0.6911045]
[1765821152551,0.0116736,85666.0,85658.0,0.6911045]
[1765821152764,0.17014479,85659.0,85658.0,0.6911045]
[1765821153059,0.49504479,85659.0,85658.0,0.32508]
[1765821153654,0.0116755,85651.0,85650.0,0.67960508]
[1765821153862,1.2141655,85651.0,85650.0,0.00017508]
[1765821154564,0.0116775,85636.0,85632.0,0.3608]
[1765821154764,0.0116775,85636.0,85629.0,0.00015099]
[1765821154765,0.0116779,85633.0,85629.0,0.00015099]
[1765821154965,0.3724783,85630.0,85629.0,0.34647493]
[1765821155152,0.5724783,85630.0,85629.0,0.34647493]
[1765821155355,0.3608,85630.0,85629.0,0.70082493]
[1765821155651,0.5208,85630.0,85629.0,0.70082493]
[1765821156257,0.5208,85630.0,85629.0,0.71250343]
[1765821156456,0.5208,85630.0,85629.0,0.70282493]
[1765821156760,0.5218,85630.0,85629.0,0.70582493]
[1765821157264,0.041,85630.0,85629.0,0.70582493]
[1765821157561,0.201,85630.0,85629.0,0.70582493]
[1765821158863,0.191,85630.0,85629.0,0.70582493]
[1765821159070,0.00017508,85638.0,85637.0,0.6911074]
[1765821159266,0.50507508,85638.0,85637.0,0.3367574]
[1765821159563,0.18017508,85638.0,85637.0,0.67943]
[1765821159974,0.67169,85630.0,85629.0,0.02639493]
[1765821160158,1.21261096,85630.0,85629.0,0.02339493]
[1765821160660,1.60238096,85630.0,85629.0,0.70282493]
[1765821160859,1.60238096,85630.0,85629.0,0.02339493]
[1765821160860,1.21261096,85630.0,85629.0,0.02339493]
[1765821161063,1.21261096,85630.0,85629.0,0.34847493]
[1765821161372,0.18012096,85630.0,85629.0,0.70282493]
[1765821161666,0.18012096,85630.0,85629.0,0.70082493]
[1765821162370,0.18112096,85630.0,85629.0,0.70382493]
[1765821163973,9.6e-07,85630.0,85629.0,0.82060711]
[1765821164272,0.36097508,85638.0,85637.0,0.6911074]
[1765821164472,0.52097508,85638.0,85637.0,0.6911074]
[1765821165269,0.52097508,85638.0,85637.0,0.67943]
[1765821165767,0.52197508,85638.0,85637.0,0.68043]
[1765821166870,1.19366508,85638.0,85637.0,0.001]
[1765821168772,0.52197508,85638.0,85637.0,0.6921074]
[1765821168978,0.16117508,85638.0,85637.0,0.6921074]
[1765821169371,0.48607508,85638.0,85637.0,0.6921074]
[1765821169572,0.16117508,85638.0,85637.0,0.6921074]
[1765821170169,0.00117508,85638.0,85637.0,0.80887867]
[1765821170361,0.17117508,85638.0,85637.0,0.80887867]
[1765821170567,0.03117508,85638.0,85637.0,0.80887867]
[1765821170962,0.20117508,85638.0,85637.0,0.80887867]
[1765821171572,0.52607508,85638.0,85637.0,0.79720127]
[1765821171773,0.52607508,85638.0,85637.0,0.68043]
[1765821172072,0.00117508,85638.0,85637.0,0.68043]
[1765821172279,0.00117508,85638.0,85637.0,0.79720127]
[1765821172474,0.3724739,85663.0,85644.0,0.16969]
[1765821172776,0.8533638,85663.0,85662.0,0.32508]
[1765821172975,0.84169,85663.0,85662.0,0.32508]
[1765821173171,0.17,85663.0,85662.0,0.67943]
[1765821173374,0.0116706,85687.0,85675.0,0.6911022]
[1765821173568,0.2,85677.0,85676.0,0.6911021]
[1765821174480,0.2,85677.0,85676.0,0.8078209]
[1765821174776,0.00017508,85685.0,85684.0,0.691101]
[1765821174984,0.09017508,85685.0,85684.0,0.691101]
[1765821175170,0.011671,85684.0,85682.0,0.3608]
[1765821175365,0.18,85684.0,85683.0,0.67943]
[1765821175570,0.18,85684.0,85683.0,0.87361]
[1765821175779,0.18,85684.0,85676.0,0.00017508]
[1765821175780,0.21481,85683.0,85676.0,0.67960508]
[1765821175972,1.04633588,85685.0,85684.0,0.001]
[1765821176172,1.24597276,85685.0,85684.0,0.001]
[1765821176374,0.56061196,85685.0,85684.0,0.67943]
[1765821176574,0.19981196,85685.0,85684.0,0.67943]
[1765821176770,0.683361,85684.0,85683.0,0.001]
[1765821176972,0.88299788,85684.0,85683.0,0.001]
[1765821177172,0.88399788,85684.0,85683.0,0.001]
[1765821177872,0.3365719,85677.0,85676.0,0.00017508]
[1765821178072,0.8533619,85677.0,85676.0,0.00017508]
[1765821179277,0.0116729,85671.0,85665.0,0.3608]
[1765821179479,0.17,85671.0,85667.0,0.32508]
[1765821179677,0.5424729,85671.0,85667.0,0.32508]
[1765821179883,0.6833632,85668.0,85661.0,0.11671811]
[1765821180080,0.8633632,85668.0,85663.0,0.0116738]
[1765821180279,0.18,85668.0,85658.0,0.0116744]
[1765821180588,1.03249,85661.0,85660.0,0.0116742]
[1765821180774,0.8433641,85661.0,85656.0,0.0116747]
[1765821180974,0.3249,85657.0,85656.0,0.32508]
[1765821181275,0.18,85657.0,85656.0,1.0519048]
[1765821181477,0.3249,85668.0,85667.0,0.0116732]
[1765821181684,0.17,85668.0,85667.0,0.6911032]
[1765821181880,0.17,85668.0,85667.0,0.67943]
[1765821182675,0.83589,85668.0,85667.0,0.67943]
[1765821182878,0.171,85668.0,85667.0,0.67943]
[1765821183180,0.3608,85689.0,85688.0,0.70654]
[1765821183381,0.6927,85682.0,85681.0,0.3608]
[1765821183684,0.6927,85682.0,85673.0,0.35338]
[1765821183685,0.7043724,85674.0,85673.0,0.35338]
[1765821183887,0.8327,85674.0,85673.0,0.70654]
[1765821184581,0.49271,85674.0,85673.0,0.70654]
[1765821184779,0.49471,85674.0,85673.0,0.70754]
[1765821185080,0.142,85674.0,85673.0,0.70754]
[1765821185284,0.1516723,85674.0,85673.0,0.70654]
[1765821185484,0.1536723,85674.0,85673.0,0.70654]
[1765821185685,0.142,85674.0,85673.0,0.70654]
[1765821186184,0.143,85674.0,85673.0,0.70654]
[1765821186386,0.1546723,85674.0,85673.0,0.70654]
[1765821186582,0.6927,85666.0,85665.0,0.00017508]
[1765821186882,0.3754725,85674.0,85671.0,0.0116727]
[1765821187079,0.153,85674.0,85673.0,0.70754]
[1765821187280,0.003,85674.0,85673.0,0.70754]
[1765821187479,0.143,85674.0,85673.0,0.70754]
[1765821187686,0.0116712,85683.0,85681.0,0.70654]
[1765821187982,0.16017508,85682.0,85681.0,0.7182114]
[1765821188580,0.19017508,85682.0,85681.0,0.7182114]
[1765821188781,0.18999998,85682.0,85681.0,0.7182114]
[1765821189082,0.19099998,85682.0,85681.0,1.06734]
[1765821189274,0.001,85682.0,85681.0,1.0790114]
[1765821189480,0.2026712,85682.0,85681.0,0.70654]
[1765821189680,0.5553812,85682.0,85681.0,0.70654]
[1765821189875,0.54371,85682.0,85681.0,0.70654]
[1765821190085,0.54471,85682.0,85681.0,0.70654]
[1765821190290,0.54471,85682.0,85681.0,0.8349227]
[1765821190291,0.022,85682.0,85681.0,0.8349227]
[1765821190484,0.00017508,85690.0,85681.0,0.8349227]
[1765821190485,0.00017508,85690.0,85689.0,0.70654]
[1765821190792,0.16017508,85690.0,85689.0,0.70654]
[1765821190987,0.16017508,85690.0,85689.0,0.82324041]
[1765821191181,0.00017508,85690.0,85689.0,0.82324041]
[1765821191489,0.00315309,85705.0,85697.0,0.7182092]
[1765821191686,0.00315309,85705.0,85697.0,1.0790092]
[1765821191894,0.17233379,85698.0,85697.0,1.0790092]
[1765821192191,0.17233379,85698.0,85697.0,1.19569871]
[1765821192385,0.13233379,85698.0,85697.0,1.19569871]
[1765821192597,0.0116701,85691.0,85690.0,0.70654]
[1765821192883,0.17,85691.0,85690.0,0.70654]
[1765821193083,0.6927,85690.0,85689.0,0.00117508]
[1765821193286,0.8827,85690.0,85689.0,0.00117508]
[1765821193488,0.8827,85690.0,85689.0,0.00017508]
[1765821193689,0.0116709,85685.0,85680.0,0.0116715]
[1765821193894,0.6927,85683.0,85682.0,0.0116711]
[1765821194100,0.8727,85683.0,85682.0,0.0116711]
[1765821194286,0.8727,85683.0,85682.0,0.7182111]
[1765821194481,1.2335,85683.0,85682.0,0.70654]
[1765821194692,0.0116712,85682.0,85679.0,0.73608]
[1765821194889,0.2116712,85682.0,85678.0,0.0116717]